Cogmind - Beta 13 @@@ ROGUE MODE // 2024.03.02 @ 19:53:25 Player: ktur Result: Destroyed by ZQ-RVX(R) with Subdweller Laser Performance ------------- Evolutions (0) 0 Regions Visited (2) 400 Robots Destroyed (40) 200 Value Destroyed (906) 906 Prototype IDs (0) 0 Alien Tech Used (0) 0 Bonus (0) 0 TOTAL SCORE: 1506 Bonus ------- None Cogmind --------- Core Integrity 0/250 Matter 121/300 Energy 250/250 System Corruption 1% Temperature Cool (68) Movement Treading (160) Location -10/Subcaves Parts ------- > --- POWER (1) -------- Ion Engine > --- PROPULSION (2) --- Light Treads Light Treads > --- UTILITY (2) ------ Disposable Heat Sink Medium Storage Unit > --- WEAPON (2) ------- Subdweller Beam Cannon Slug Cannon > --- INVENTORY (10) --- Compact Wheel Compact Wheel Huge Storage Unit High-capacity Battery (250) High-capacity Matter Pod (200) Seismic Detector Makeshift System Shield Battle Rifle Mining Laser Peak State ------------ > --- POWER ------------ Ion Engine > --- PROPULSION ------- Light Treads Light Treads > --- UTILITY ---------- Disposable Heat Sink Medium Storage Unit > --- WEAPON ----------- Subdweller Beam Cannon Slug Cannon > --- INVENTORY -------- Light Treads Compact Wheel Compact Wheel Huge Storage Unit High-capacity Battery High-capacity Matter Pod Seismic Detector Makeshift System Shield Battle Rifle Mining Laser [Rating: 13] Favorites ----------- Power Ion Engine Engine Ion Engine Propulsion Light Treads Treads Light Treads Wheel Compact Wheel Utility Seismic Detector Device Seismic Detector Storage Medium Storage Unit Protection Scrap Shield Weapon Beam Cannon Energy Gun Small Laser Energy Cannon Beam Cannon Ballistic Gun Light Assault Rifle Ballistic Cannon Slug Cannon Launcher Grenade Launcher Special Weapon Mining Laser Build | -11 -10 -10 ------- Run | Yrd Mat Sub Slots Evolved . | . . . Power . | . . . Propulsion . | . . . Utility . | . . . Weapon . | . . . Parts Attached 67 | 8 10 49 Power 8 | 2 1 5 Engine 8 | 2 1 5 Core . | . . . Reactor . | . . . Propulsion 15 | 2 4 9 Treads 11 | 2 2 7 Leg . | . . . Wheel 4 | . 2 2 Hover . | . . . Flight . | . . . Utility 17 | 2 2 13 Device 10 | 1 1 8 Storage 5 | 1 1 3 Processor . | . . . Hackware . | . . . Protection 2 | . . 2 Artifact . | . . . Weapon 27 | 2 3 22 Energy Gun 1 | 1 . . Energy Cannon 6 | . 1 5 Ballistic Gun 9 | 1 . 8 Ballistic Cannon 2 | . . 2 Launcher 4 | . 1 3 Special Weapon 5 | . 1 4 Impact Weapon . | . . . Slashing Weapon . | . . . Piercing Weapon . | . . . Special Melee Weapon . | . . . Unidentified Prototypes . | . . . Parts Lost 10 | . . 10 Power 2 | . . 2 Propulsion 3 | . . 3 Utility 1 | . . 1 Weapon 4 | . . 4 Highest Loss Streak 5 | . . 5 To Critical Strikes . | . . . Average Slot Usage (%) 92 | . 100 89 Engine 13 | . 14 13 Treads 23 | . 19 25 Wheel 4 | . 8 2 Device 10 | . 14 9 Storage 8 | . 14 6 Protection 2 | . . 3 Energy Cannon 8 | . 6 8 Ballistic Gun 9 | . 7 10 Ballistic Cannon 3 | . . 4 Launcher 4 | . 12 1 Special Weapon 1 | . . 1 Naked Turns . | . . . Heaviest Build 92 | 11 92 92 Greatest Support 40 | 40 40 40 Greatest Overweight (x) 5 | . 5 2 Average Overweight (x) . | . 2 . Largest Inventory Capacity 25 | 8 25 25 Average Capacity 10 | 7 18 8 Most Carried 25 | 7 25 25 Average Carried 8 | 5 12 7 Final Capacity 25 | 8 25 10 Final Carried 25 | 6 25 9 Class Distribution -------------------- 81% | Mutant 18% | Scavenger-Mutant Dominant Class ---------------- Mutant | -10/Materials Mutant | -10/Subcaves Resources | -11 -10 -10 ----------- Run | Yrd Mat Sub Matter Collected 1433 | 301 337 795 Remotely . | . . . Salvage Created 1198 | 270 366 562 Parts 81 | 24 17 40 Haulers Intercepted 2 | . 2 . Recyclers Shooed . | . . . Parts Field Recycled . | . . . Retrieved Matter . | . . . Parts Self-Destructed 9 | . . 9 Prevented . | . . . Kills | -11 -10 -10 ------- Run | Yrd Mat Sub Combat Hostiles Destroyed 25 | . 7 18 Guns 6 | . . 6 Cannons 6 | . . 6 AOE 13 | . 7 6 Classes Destroyed 8 | 3 3 2 Worker 1 | 1 . . Tunneler 9 | 9 . . Hauler 2 | . 2 . Recycler 3 | 1 2 . Swarmer 6 | . 3 3 Grunt 6 | . 4 2 Artisan 1 | . . 1 Subdweller 13 | . . 13 Best Kill Streak 4 | 4 4 4 Combat Bots Only 4 | . 3 4 Max Kills in Single Turn 3 | 1 3 3 Gunslinging . | . . . Exploded 3 | . 3 3 Melee . | . . . Uniques/NPCs Destroyed . | . . . Combat | -11 -10 -10 -------- Run | Yrd Mat Sub Hostile Shots Fired 128 | . 10 118 Missed 36 | . 3 33 Damage Taken 1919 | . 76 1843 Core 268 | . 14 254 Absorbed by Shields . | . . . Core Remaining (%) 100 | 100 . . Volleys Fired 183 | 21 30 132 Largest 2 | 2 1 2 Hottest 128 | 60 100 128 Shots Fired 271 | 42 30 199 Gun 100 | 42 3 55 Cannon 136 | . 7 129 Launcher 16 | . 10 6 Special 19 | . 10 9 Kinetic 121 | 21 3 97 Thermal 134 | 21 17 96 Explosive 16 | . 10 6 Electromagnetic . | . . . Robot Hit Streak 24 | 6 7 24 Robot Miss Streak 3 | 2 2 3 Penetration Max . | . . . Secondary Targets . | . . . Shots Hit Robots 156 | 24 11 121 Core Hits 65 | 15 17 33 Critical Kills 1 | . . 1 Critical Parts Destroyed . | . . . Critical Strikes 4 | . . 4 Destroy 3 | . . 3 Blast 1 | . . 1 Melee Attacks . | . . . Impact . | . . . Slashing . | . . . Piercing . | . . . Sneak Attacks . | . . . Combat Hostiles . | . . . Follow-up Attacks . | . . . Damage Inflicted 3661 | 227 627 2807 Guns 935 | 227 8 700 Cannons 1750 | . 71 1679 Explosions 969 | . 541 428 Melee . | . . . Ramming 7 | . 7 . Kinetic 1475 | 73 8 1394 Thermal 1210 | 154 71 985 Explosive 969 | . 541 428 Electromagnetic . | . . . Impact . | . . . Slashing . | . . . Piercing . | . . . Highest Corruption 1 | . 1 1 Average Corruption 1 | . 1 1 Corruption Purged . | . . . Corruption Blocked . | . . . Effects 17 | . . 17 Message Errors 4 | . . 4 Matter Fused 2 | . . 2 Heat Flow Errors 3 | . . 3 Energy Discharges 1 | . . 1 Data Loss (minor) 3 | . . 3 Data Loss (major) 1 | . . 1 Misfires 1 | . . 1 Alerts 1 | . . 1 Weapon Failures 1 | . . 1 Overload Shots . | . . . Overflow Damage 14 | . 2 12 Projectiles 9 | . . 9 Explosions 5 | . 2 3 Melee . | . . . Knockbacks 3 | . . 3 Impact . | . . . Kinetic 3 | . . 3 Secondary . | . . . Self-Inflicted Damage 37 | . 16 21 Shots 2 | . 1 1 Rammed 1 | . 1 . Targets Rammed 1 | . 1 . Kicked . | . . . Crushed . | . . . Highest Temperature 227 | 40 80 227 Average Temperature 35 | 18 29 47 Received Heat Transfer 324 | . 18 306 Siege Activations . | . . . Robots Corrupted . | . . . Combat Hostiles . | . . . Parts Fried . | . . . Impact Corruptions . | . . . Robots Melted . | . . . Combat Hostiles . | . . . Parts Melted 3 | . . 3 Heat Transferred 2348 | 350 148 1850 Parts Sabotaged . | . . . Parts Stolen . | . . . Parts Stripped . | . . . Power Chain Reactions . | . . . Alert | -11 -10 -10 ------- Run | Yrd Mat Sub Peak Influence 279 | 55 279 . Initial 35 | . 35 . Average 98 | 24 119 . Maximum Alert Level 1 | . 1 . Low Security (%) 94 | 100 92 . Level 1 5 | . 7 . Level 2 . | . . . Level 3 . | . . . Level 4 . | . . . Level 5 . | . . . High Security . | . . . Max Security . | . . . Squads Dispatched 2 | . 2 . Investigation 1 | . 1 . Extermination . | . . . Reinforcement 1 | . 1 . Assault . | . . . Garrison . | . . . Intercept . | . . . Searches Triggered . | . . . Construction Impeded . | . . . Haulers Reinforced . | . . . Active Scanning Responses . | . . . Cargo Convoy Interrupts . | . . . Stealth | -11 -10 -10 --------- Run | Yrd Mat Sub Distress Signals . | . . . Communications Jammed . | . . . Distress Signals . | . . . Times Spotted 33 | . 13 20 Peak Tracking Total 4 | . 3 4 Tactical Retreats . | . . . Traps | -11 -10 -10 ------- Run | Yrd Mat Sub Traps Triggered 1 | . 1 . Indirectly . | . . . Trap Hack Attempts . | . . . Triggered . | . . . Disarmed . | . . . Reprogrammed . | . . . Reused . | . . . Traps Extracted . | . . . Installed . | . . . Triggered . | . . . Machines | -11 -10 -10 ---------- Run | Yrd Mat Sub Machines Disabled 1 | . 1 . Max in Single Turn 1 | . 1 . Machines Repaired . | . . . Machines Dismantled . | . . . Machines Sabotaged . | . . . Overloaded Fab Kills . | . . . Hacking | -11 -10 -10 --------- Run | Yrd Mat Sub Machines Accessed 7 | . 6 1 Terminals 5 | . 5 . Fabricators . | . . . Repair Stations . | . . . Recycling Units 1 | . 1 . Scanalyzers . | . . . Garrison Access . | . . . Total Hacks 14 | . 11 3 Successful 8 | . 5 3 Failed 6 | . 6 . Catastrophic . | . . . Database Lockouts . | . . . Manual 2 | . 2 . Terminals 10 | . 10 . Fabricators . | . . . Repair Stations . | . . . Recycling Units 1 | . 1 . Scanalyzers . | . . . Garrison Access . | . . . Terminal Hacks 7 | . 4 3 Record 3 | . . 3 Robot Analysis 1 | . 1 . Terminal Index 1 | . 1 . Locate Traps 1 | . 1 . Zone Layout 1 | . 1 . Fabricator Hacks . | . . . Repair Station Hacks . | . . . Recycling Unit Hacks . | . . . Scanalyzer . | . . . Garrison Access Hacks . | . . . Unauthorized Hacks 1 | . 1 . Terminals . | . . . Fabricators . | . . . Repair Stations . | . . . Recycling Units 1 | . 1 . Tunnel 1 | . 1 . Scanalyzers . | . . . Garrison Access . | . . . Data Cores Recovered . | . . . Used . | . . . Hacking Detections 5 | . 5 . Full Trace Events . | . . . Feedback Events . | . . . Feedback Blocked . | . . . Robot Schematics Acquired . | . . . Robots Built . | . . . Authchips . | . . . Time . | . . . Total Robot Build Rating . | . . . Part Schematics Acquired . | . . . Parts Built . | . . . Authchips . | . . . Time . | . . . Total Part Build Rating . | . . . Parts Repaired . | . . . Time . | . . . Parts Recycled . | . . . Recycled Matter . | . . . Retrieved Matter . | . . . Retrieved Components . | . . . Parts Scanalyzed . | . . . Part Schematics Acquired . | . . . Parts Damaged . | . . . Bothacking | -11 -10 -10 ------------ Run | Yrd Mat Sub Used RIF Installer . | . . . Robots Hacked . | . . . Non-combat . | . . . Combat . | . . . Robot Hacks Applied . | . . . Relay Couplers Released . | . . . Fabnet Peak Effective % . | . . . Robots Rewired . | . . . Allies Hacked . | . . . Hacks Repelled . | . . . Allies | -11 -10 -10 -------- Run | Yrd Mat Sub Total Allies . | . . . Largest Group . | . . . Highest-Rated Group . | . . . Highest-Rated Ally . | . . . Total Orders . | . . . Ally Attacks . | . . . Total Damage . | . . . Kills . | . . . Allies Corrupted . | . . . Allies Melted . | . . . Intel | -11 -10 -10 ------- Run | Yrd Mat Sub Robot Analysis Total 1 | . 1 . Derelict Logs Recovered . | . . . Drone Launches . | . . . Drone Recoveries . | . . . Exploration | -11 -10 -10 ------------- Run | Yrd Mat Sub Turns Passed 4348 | 295 1066 2987 Spaces Moved 2239 | 130 558 1551 Core 3 | 3 . . Treads 1665 | 127 243 1295 Legs . | . . . Wheels 571 | . 315 256 Hover . | . . . Flight . | . . . Fastest Speed 50 | 50 160 110 Average Speed 160 | 157 168 158 Slowest Speed 320 | 160 175 320 Overloaded Moves . | . . . Propulsion Burnouts . | . . . Robots Hopped . | . . . Cave-ins Triggered . | . . . Exploration Rate (%) 47 | 6 67 69 Regions Visited 2 Branch Regions 1 Pre-discovered Areas 1 | . 1 . Known Exits Taken . | . . . Unknown Exits Taken 2 | 1 1 . Scrap Searched 8 | . . 8 Spaces Dug 29 | . 12 17 Terrain Destroyed 90 | . 46 44 Melee . | . . . Projectile 17 | . 4 13 AOE 73 | . 42 31 Terrain Rammed . | . . . Walls Destroyed . | . . . Machines Disabled . | . . . Actions | -11 -10 -10 --------- Run | Yrd Mat Sub Total 2690 | 180 632 1878 Wait 83 | 13 7 63 Move 2237 | 129 557 1551 Hop . | . . . Pick Up 61 | 9 23 29 Fast Attach 18 | 4 2 12 Attach 14 | 3 1 10 Detach 1 | . . 1 Swap 35 | 1 7 27 Drop 53 | . 4 49 Fire 183 | 21 30 132 Melee . | . . . Ram 1 | . 1 . Kick . | . . . Crush . | . . . Escape Stasis . | . . . Rewire . | . . . Trap . | . . . Miscellaneous 4 | . . 4 Route ------- -11/Scrapyard -10/Materials (discovered 3 exits: [*Mat x2] / *Sub) -10/Subcaves (discovered 2 exits: [*Mat x2]) History --------- Turn | Location | Event 2 | -11/Scrapyard | Met Revision 17 34 | -11/Scrapyard | Discovered new exit (range 15) 296 | -11/Scrapyard | Entered Materials 331 | -10/Materials | Build established: Mutant 834 | -10/Materials | Discovered new exit (range 16) 1159 | -10/Materials | Discovered new exit (range 5) 1327 | -10/Materials | Discovered new exit (range 3) 1362 | -10/Materials | Entered Subcaves 1488 | -10/Subcaves | Visited Clippyterm 1665 | -10/Subcaves | Build established: Scavenger-Mutant 1690 | -10/Subcaves | Disturbed a concealed Subdweller 1944 | -10/Subcaves | A swath of the cavern ceiling suddenly collapsed 2015 | -10/Subcaves | Build established: Mutant 2021 | -10/Subcaves | Discovered new exit (range 7) 2339 | -10/Subcaves | Disturbed a concealed Subdweller 2600 | -10/Subcaves | Lost 5 parts (1p1n1u2w) 2861 | -10/Subcaves | Core integrity fell below 50% 3151 | -10/Subcaves | Discovered new exit (range 8) 3222 | -10/Subcaves | Build established: Scavenger-Mutant 3686 | -10/Subcaves | Build established: Mutant 3855 | -10/Subcaves | Shifting Twisted Machinery released Sub. Laser 3893 | -10/Subcaves | Shifting Twisted Machinery released Sub. Optics 3922 | -10/Subcaves | Core integrity fell below 20% 4349 | -10/Subcaves | Destroyed by ZQ-RVX(R) with Subdweller Laser Last Messages --------------- 04005_ W5-ULY(u) tweaks Twisted Machinery. 04060_ System corrupted: Heat flow error (+198). 04068_ Acquired 13 matter. 04077_ MVX YNG,KY9IIMCPN#TARYN3/AWA=KL2ENM#< Y3M 04283_ Acquired 5 matter. 04286_ Acquired 11 matter. 04291_ Acquired 15 matter. 04333_ Lgt. Treads destroyed. 04339_ ZQ-RVX(R) knocked back. 04345_ Sub. Beam Cannon shoots sparks and powers down. Map ----- +----------------------------------------------------+ | ???# #?# ### ##????????????????? | | ???## ######??# #?## ##???????????????? | | ???## ####?## ##??## #???????????????? | | ???# #### ###### #???????????????? | | ???# #" "## ##??????????????? | | ???# "&" & "#??????????????? | | ???# & ##??????????????? | | ???# ##### ! #??????????????? | | ???# ##???### & [ " " #??????????????? | | ???###???????## " #??????????????? | | ??????????????###### & #??????????????? | | ???????????????????### #??????????????? | | ?????????????????????# ##??????????????? | | ?????????????????????# ##???????????????? | | ?????????????????????# #????????????????? | | ?????????????????????# ##???????????????? | | ????????????????????## ##??????????????? | | ????????????????????# #??????????????? | | ????????????????????# ## #??????????????? | | ????????????????????## ## ####??????????????? | | ?????????????????????### ##?????????????????? | | ???????????????????????# #?##???????????????? | | ??????????????????????### ## ##??????????????? | | ?????????????????????##"" #??????????????? | | ?????????????????????#" " ##??????????????? | | ?????????????????????#" @ "##???????????????? | | ????????????????????##" R ###????????????????? | | ????????????????????#" R %##??????????????????? | | ???????????????????#"" %#???????????????????? | | ??????????????????#""" #???????????????????? | | ??????????????????"""" ???????????????????? | | ??????????????????"""" ???????????????????? | | ?????????????????? #### #???????????????????? | | ??????????????????????#"""#???????????????????? | | ??????????????????????"" #???????????????????? | | ?????????????????????? " ???????????????????? | | ?????????????????????##" ???????????????????? | | ???????????????????????" ???????????????????? | | ??????????????????????? # ???????????????????? | | ??????????????????????? ?# ???????????????????? | | ?????????????????????????? ???????????????????? | | ??????????????????????????????????????????????? | | ??????????????????????????????????????????????? | | ??????????????????????????????????????????????? | | ??????????????????????????????????????????????? | | ??????????????????????????????????????????????? | | ??????????????????????????????????????????????? | | ??????????????????????????????????????????????? | | ??????????????????????????????????????????????? | | ??????????????????????????????????????????????? | +----------------------------------------------------+ Best States ------------- Heat Dissipation 25 Coolant Potential 50 Energy Generation 15 Energy Capacity 250 Matter Stores 300 Matter Capacity 300 Sight Range 16 Terrain Scan Density 10 Armor Coverage 800 Evasion (%) 40 Recoil Reduction 2 Item Schematics ----------------- None Robot Schematics ------------------ None Fabricated ------------ Nothing Alien Tech Used ----------------- None Achievements -------------- None Challenges ------------ None Game ------ Seed PotentialCarbideLauncher Manual? 0 Play Time 00:23:40 Cumulative 759.2 hours Start 2024.03.02 @ 19:32:23 End 2024.03.02 @ 19:53:25 Sessions 1 Manual Loads 0 Difficulty Rogue Special Mode None Game No. 698 Rogue 698 Adventurer 0 Explorer 0 Win Type - Total 39 Types 14/4/11/2/0/0/5/2/1 Lore% 93 Gallery% 95 Achievement% 84 Wizard Run 0 Options --------- Layout 0 ASCII 0 Keyboard 0 Movement Numpad Keybinds 0 Fullscreen 1 Font 18/Smallcaps Map View 76x50 Zoom Use 0% Tactical HUD 1 Map Filters NONE Filters NONE Steam 1 RUN: 4569d782-137c-41ef-bde2-268e6ad225e1